bitfinex-derivatives/quotes_ETHF0:USTF0_20250422
["timestamp","ask_amount","ask_price","bid_price","bid_amount"]
[1745325799030,6.322,1634.1,1634.0,8.2078]
[1745325799235,0.00919371,1634.5,1634.0,9.4787]
[1745325799428,0.00919371,1634.5,1634.2,3.2078]
[1745325800641,0.00919371,1634.5,1634.3,1.2176]
[1745325801343,0.00919371,1634.5,1634.4,4.987]
[1745325802132,0.00919371,1634.5,1634.4,1.7792]
[1745325803128,6.33119371,1634.5,1634.4,1.7792]
[1745325806838,6.33119371,1634.5,1634.3,1.2176]
[1745325807138,1.6619,1634.4,1634.2,3.2078]
[1745325807333,1.6619,1634.4,1634.3,1.7826]
[1745325807538,1.6619,1634.4,1634.2,3.2078]
[1745325808140,7.9839,1634.4,1634.2,3.2078]
[1745325808642,9.1528,1634.4,1634.2,3.2078]
[1745325814958,6.322,1634.4,1634.2,8.2078]
[1745325815157,0.00919371,1634.5,1634.3,2.9904]
[1745325815463,0.00919371,1634.5,1634.4,4.9976]
[1745325815953,0.00919371,1634.5,1634.4,9.9976]
[1745325817061,18.41602657,1635.2,1634.4,9.9976]
[1745325817361,2.3975,1635.9,1635.0,3.2078]
[1745325817562,31.4583038,1635.6,1635.5,3.2078]
[1745325817759,15.36844758,1635.6,1635.5,3.2078]
[1745325818163,21.69044758,1635.6,1635.5,3.2078]
[1745325818864,21.69044758,1635.6,1635.5,4.992]
[1745325819668,21.69044758,1635.6,1635.5,3.2078]
[1745325820164,6.322,1635.6,1635.5,3.2078]
[1745325820365,8.0636,1635.6,1635.5,3.2078]
[1745325820570,8.0636,1635.6,1635.5,4.992]
[1745325821164,6.322,1635.6,1635.5,4.992]
[1745325822666,7.9781,1635.6,1635.5,4.992]
[1745325823165,7.9781,1635.6,1635.5,3.2078]
[1745325823867,14.1696,1635.6,1635.4,0.00919371]
[1745325824158,1.32307967,1635.5,1635.4,0.00919371]
[1745325824365,7.97917967,1635.5,1635.4,0.00919371]
[1745325824566,7.97918393,1635.5,1635.4,0.00919371]
[1745325824766,8.08136786,1635.5,1635.4,0.00919371]
[1745325825066,7.97918393,1635.5,1635.4,0.00919371]
[1745325825255,9.30118393,1635.5,1635.4,0.00919371]
[1745325825965,9.40336694,1635.5,1635.4,0.00919371]
[1745325826161,14.40336694,1635.5,1635.4,0.00919371]
[1745325826558,17.61116694,1635.5,1635.4,0.00919371]
[1745325826767,17.61116694,1635.5,1634.9,3.2078]
[1745325826967,0.10218301,1635.4,1634.7,3.2078]
[1745325827161,1.7518,1635.3,1634.8,1.7966]
[1745325827465,0.10218301,1635.2,1634.8,1.7966]
[1745325827660,0.10218301,1635.2,1634.9,3.2078]
[1745325827868,6.322,1635.4,1635.1,3.2078]
[1745325828065,6.322,1635.4,1635.3,3.2078]
[1745325830069,8.0816,1635.4,1635.3,3.2078]
[1745325830464,6.322,1635.4,1635.3,3.2078]
[1745325836066,6.322,1635.4,1635.3,8.2078]
[1745325836272,5.02140629,1635.4,1635.3,8.2078]
[1745325836671,1.96304044,1635.4,1635.3,8.2078]
[1745325836971,0.10218393,1635.5,1635.3,8.2078]
[1745325837173,0.10218393,1635.5,1635.4,5.44541]
[1745325837571,0.10218393,1635.5,1635.4,10.44541]
[1745325838972,0.10218393,1635.5,1635.4,4.16361]
[1745325839180,6.42418393,1635.5,1635.4,2.95441]
[1745325839678,8.14948393,1635.5,1635.4,2.95441]
[1745325841776,6.42418393,1635.5,1635.4,2.95441]
[1745325842184,0.10218393,1635.5,1635.4,2.95441]
[1745325843485,3.93e-06,1635.5,1635.4,7.95441]
[1745325843984,3.93e-06,1635.5,1635.4,2.95441]
[1745325845280,3.93e-06,1635.5,1635.4,1.7315]
[1745325845785,1.70920393,1635.5,1635.4,1.7315]
[1745325846178,8.03120393,1635.5,1635.4,1.7315]
[1745325848287,8.03120393,1635.5,1635.3,3.2078]
[1745325848491,1.22291,1635.4,1635.3,3.2078]
[1745325848682,2.91821,1635.4,1635.3,3.2078]
[1745325849081,9.24021,1635.4,1635.3,3.2078]
[1745325849283,8.0173,1635.4,1635.1,3.2078]
[1745325849583,1.22306,1635.2,1635.1,3.2078]
[1745325850386,11.322,1635.2,1634.9,3.2078]
[1745325850685,1.22329,1634.9,1634.8,0.00919371]
[1745325851287,7.54529,1634.9,1634.8,0.00919371]
[1745325852688,10.40849,1634.9,1634.8,0.00919371]
[1745325853689,15.40849,1634.9,1634.8,0.00919371]
[1745325853993,1.22351,1634.6,1634.5,5.0107]
[1745325854188,1.22366,1634.4,1634.3,3.2078]
[1745325854888,5.10146899,1634.4,1633.9,0.48780744]
[1745325855189,1.7555627,1634.3,1634.0,0.00919371]
[1745325855497,1.65409371,1634.3,1634.0,0.00919371]
[1745325856088,11.18389371,1634.3,1634.0,0.00919371]
[1745325857893,1.1636,1634.2,1634.0,0.00919371]
[1745325858093,1.7407,1634.1,1634.0,0.00919371]
[1745325858291,2.9568,1634.1,1634.0,0.00919371]
[1745325858496,6.322,1634.2,1634.0,0.00919371]
[1745325858794,6.322,1634.2,1634.1,1.22389]
[1745325858992,6.322,1634.2,1634.1,3.00609]
[1745325859293,6.322,1634.2,1634.1,1.7822]
[1745325860186,6.322,1634.2,1634.0,3.21699371]
[1745325860394,1.7228,1634.1,1634.0,3.21699371]
[1745325861188,8.0448,1634.1,1634.0,3.21699371]
[1745325861893,6.322,1634.1,1634.0,3.21699371]
[1745325862095,6.31280629,1634.1,1634.0,8.21699371]
[1745325862391,0.00919371,1634.3,1634.0,8.21699371]
[1745325862593,0.00919371,1634.3,1634.2,3.2078]
[1745325862788,0.00919371,1634.3,1634.2,6.1308]
[1745325862984,0.00919371,1634.3,1634.2,11.1308]
[1745325865298,0.00919371,1634.3,1634.2,12.35461]
[1745325866291,3.71e-06,1634.3,1634.2,12.35461]
[1745325866688,1.80651948,1635.1,1635.0,1.22321]
[1745325866887,1.7051,1635.1,1635.0,1.22321]
[1745325867089,2.92824,1635.1,1635.0,1.22321]
[1745325867387,14.25024,1635.1,1634.9,1.22322]
[1745325867696,9.25024,1635.1,1634.9,1.22322]
[1745325867992,8.0271,1635.1,1634.8,4.84760371]
[1745325868195,8.0271,1635.1,1635.0,1.22321]
[1745325868696,9.25024,1635.1,1635.0,1.22321]
[1745325869895,1.22329,1634.9,1634.8,0.00919371]
[1745325870096,4.43109,1634.9,1634.8,1.23255371]
[1745325870293,15.85452307,1634.9,1634.8,1.23255371]
[1745325870790,4.43534,1634.9,1634.8,4.44035371]
[1745325871094,0.00919371,1635.2,1635.1,1.22314]
[1745325871593,0.00919371,1635.2,1635.0,5.0022]
[1745325871594,5.00919371,1635.2,1634.8,3.21699371]
[1745325871795,2.87629,1635.1,1635.0,1.22321]
[1745325872301,12.9751,1635.1,1635.0,1.22321]
[1745325873297,14.19824,1635.1,1635.0,1.22321]
[1745325873695,1.22327,1635.0,1634.9,1.22325]
[1745325873896,1.7363,1635.0,1634.8,0.00919371]
[1745325874203,9.28151,1635.0,1634.9,1.22329]
[1745325874601,1.22329,1634.9,1634.8,1.23249371]
[1745325874800,1.7363,1634.9,1634.8,1.23249371]
[1745325875200,8.0583,1634.9,1634.8,2.86319371]
[1745325875404,6.322,1634.9,1634.8,2.86319371]
[1745325881708,2.42922,1634.9,1634.8,7.86319371]
[1745325881906,0.00919371,1635.2,1635.1,1.22314]
[1745325882107,0.00919371,1635.2,1635.1,4.43094]
[1745325882410,3.71e-06,1635.2,1635.1,4.43094]
[1745325883609,3.71e-06,1635.2,1635.1,9.43094]
[1745325884214,3.71e-06,1635.2,1635.1,9.93066837]
[1745325886207,3.71e-06,1635.2,1635.1,4.93066837]
[1745325886719,3.71e-06,1635.2,1635.1,4.43094]
[1745325886914,6.75510371,1635.2,1635.1,1.22314]
[1745325887121,1.75510371,1635.2,1635.1,1.22314]
[1745325887422,8.07710371,1635.2,1635.1,4.43094]
[1745325890926,9.30016371,1635.2,1635.1,4.43094]
[1745325891123,8.07710371,1635.2,1635.1,4.43094]
[1745325891718,9.30016371,1635.2,1635.1,4.43094]
[1745325892018,9.30016371,1635.2,1635.1,1.22314]
[1745325893525,14.30016371,1635.2,1635.1,1.22314]
[1745325894324,8.07710371,1635.2,1635.1,1.22314]
[1745325897030,9.30016371,1635.2,1635.1,1.22314]
[1745325897437,8.07710371,1635.2,1635.1,1.22314]
[1745325897630,9.30016371,1635.2,1635.1,1.22314]
[1745325899049,1.2232,1635.1,1635.0,1.22318]
[1745325899252,6.32200371,1635.2,1635.1,1.22314]
[1745325899541,8.11830371,1635.2,1635.1,1.22314]
[1745325899742,9.34136371,1635.2,1635.1,1.22314]
[1745325900439,1.22318,1635.1,1635.0,1.22315]
[1745325900628,1.22318,1635.1,1634.9,3.2078]
[1745325900629,1.22321,1635.0,1634.9,4.43105]
[1745325900834,1.7963,1635.1,1635.0,1.22321]
[1745325901041,3.01944,1635.1,1635.0,1.22321]
[1745325901241,9.34144,1635.1,1635.0,1.22321]
[1745325901631,8.1183,1635.1,1635.0,1.22321]
[1745325901941,6.322,1635.1,1635.0,2.85691]
[1745325903940,1.22321,1635.0,1634.9,4.43104]
[1745325904148,1.7103,1635.0,1634.9,4.43104]
[1745325905145,3.71e-06,1635.2,1635.1,1.22314]
[1745325905644,3.71e-06,1635.2,1635.1,4.43094]
[1745325905851,3.71e-06,1635.2,1635.1,5.70654]
[1745325906139,6.32200371,1635.2,1635.1,5.70654]
[1745325908642,0.56504472,1635.6,1635.5,1.22284]
[1745325908846,2.9191,1635.7,1635.4,3.2078]
[1745325909045,2.9191,1635.7,1635.6,1.22276]
[1745325909350,9.2411,1635.7,1635.6,1.22276]
[1745325909648,8.0046,1635.7,1635.6,1.22276]
[1745325909845,6.322,1635.7,1635.6,4.43056]
[1745325910750,8.1196,1635.7,1635.6,4.43056]
[1745325911854,6.322,1635.7,1635.6,4.43056]
[1745325912645,6.322,1635.7,1635.6,1.22276]
[1745325912853,6.322,1635.7,1635.6,4.43056]
[1745325913755,7.999,1635.7,1635.6,4.43056]
[1745325913950,9.22169,1635.7,1635.6,4.43056]
[1745325914159,9.22169,1635.7,1635.6,1.22276]
[1745325914454,7.999,1635.7,1635.6,1.22276]
[1745325915153,6.322,1635.7,1635.6,1.22276]
[1745325916153,9.18219,1635.7,1635.6,1.22276]
[1745325916354,7.9595,1635.7,1635.6,1.22276]
[1745325920058,9.18219,1635.7,1635.6,1.22276]
[1745325920459,7.9595,1635.7,1635.6,1.22276]
[1745325921157,6.322,1635.7,1635.6,1.22276]
[1745325921560,6.322,1635.7,1635.6,3.76656]
[1745325922752,6.322,1635.7,1635.6,4.26862243]
[1745325924561,6.322,1635.7,1635.6,5.94242243]
[1745325926055,3.39446,1635.7,1635.6,5.94242243]
[1745325926254,0.00919371,1635.8,1635.7,1.22269]
[1745325926556,3.71e-06,1635.8,1635.7,6.12869]
[1745325926758,1.7338,1636.4,1636.3,1.22224]
[1745325927161,8.0558,1636.4,1636.3,1.22224]
[1745325927363,8.0558,1636.4,1636.3,2.92044]
[1745325928164,6.322,1636.4,1636.3,2.92044]
[1745325928462,6.322,1636.4,1636.3,1.22224]
[1745325931153,4.96026,1636.4,1636.3,6.22224]
[1745325931358,0.12875,1636.4,1636.3,10.43364]
[1745325931559,1e-05,1636.5,1636.4,1.22217]
[1745325931858,1e-05,1636.5,1636.4,6.15647]
[1745325932058,1e-05,1636.5,1636.4,11.15647]
[1745325932456,1e-05,1636.5,1636.4,6.15647]
[1745325932664,1.2298,1637.0,1636.9,1.22179]
[1745325933060,7.5518,1637.0,1636.9,1.22179]
[1745325933254,4.90506,1637.0,1636.9,1.22179]
[1745325933461,7.87786,1637.0,1636.9,1.22179]
[1745325933971,1.22196,1636.7,1636.6,1.22195]
[1745325934269,4.53106847,1636.7,1636.6,1.22195]
[1745325934471,8.30910847,1636.7,1636.6,1.22195]
[1745325934963,10.03920847,1636.7,1636.6,1.22195]
[1745325935165,8.15340847,1636.7,1636.6,1.22195]
[1745325935355,8.0521,1636.7,1636.6,1.22195]
[1745325940467,4.67822,1636.7,1636.6,4.42975]
[1745325940657,3.38858,1636.7,1636.6,4.42975]
[1745325940861,0.60546,1636.7,1636.6,9.42975]
[1745325941056,0.10130876,1637.0,1636.9,1.22179]
[1745325941767,0.10130876,1637.0,1636.9,5.44529]
[1745325941967,0.10130876,1637.0,1636.9,1.22179]
[1745325942270,6.42330876,1637.0,1636.9,2.95349]
[1745325946272,0.10130876,1637.0,1636.9,2.95349]
[1745325946772,0.10130876,1637.0,1636.9,7.14449]
[1745325947875,0.10130876,1637.0,1636.9,2.95349]
[1745325949162,0.10130876,1637.0,1636.9,7.14449]
[1745325953377,0.10130876,1637.0,1636.9,5.9227]
[1745325953578,0.10130876,1637.0,1636.9,10.35229]
[1745325953969,0.10130876,1637.0,1636.9,3.2078]
[1745325954277,8.15050876,1637.0,1636.9,7.3978]
[1745325954468,9.37222876,1637.0,1636.9,9.103]
[1745325954673,8.15050876,1637.0,1636.9,9.103]
[1745325956576,9.37222876,1637.0,1636.9,9.103]
[1745325956970,6.42330876,1637.0,1636.9,9.103]
[1745325957171,7.64502876,1637.0,1636.9,9.103]
[1745325957874,7.64502876,1637.0,1636.7,3.71371]
[1745325957875,1.22187,1636.8,1636.7,5.6996]
[1745325958077,1.22187,1636.8,1636.7,9.8896]
[1745325958277,6.322,1636.8,1636.7,9.8896]
[1745325958981,6.322,1636.8,1636.7,11.6512]
[1745325959781,7.54387,1636.8,1636.7,11.6512]
[1745325964084,1.22224,1636.3,1636.2,0.00919371]
[1745325965078,7.54424,1636.3,1636.2,1.78619371]
[1745325966378,7.54424,1636.3,1636.2,0.00919371]
[1745325966379,9.22724,1636.3,1636.2,0.00919371]
[1745325967087,9.22724,1636.3,1636.2,1.78619371]
[1745325967887,9.22724,1636.3,1636.2,0.00919371]
[1745325972280,9.22724,1636.3,1636.2,1.79869371]
[1745325972676,9.22724,1636.3,1636.2,0.00919371]
[1745325974185,1.22254,1635.9,1635.8,2.812]
[1745325974380,1.22254,1635.9,1635.8,9.96497]
[1745325975283,6.322,1635.9,1635.8,9.96497]
[1745325976989,7.54454,1635.9,1635.8,9.96497]
[1745325978586,7.54454,1635.9,1635.8,1.8034]
[1745325978889,1.22261,1635.8,1635.7,0.00916533]
[1745325979192,7.47071,1635.8,1635.7,0.00916533]
[1745325980185,13.79271,1635.8,1635.7,0.00916533]
[1745325980991,13.79271,1635.8,1635.7,1.23185533]
[1745325981393,13.79271,1635.8,1635.7,0.00916533]
[1745325984182,13.79271,1635.8,1635.7,1.63986533]
[1745325985091,13.89408186,1635.8,1635.7,0.00916533]
[1745325985481,1.22306,1635.3,1635.2,1.22301]
[1745325985685,1.22306,1635.3,1635.2,2.85371]
[1745325985885,4.43086,1635.3,1635.2,1.6307]
[1745325986080,1.22314,1635.2,1635.1,1.22311]
[1745325986290,1.22314,1635.2,1635.1,2.96441]
[1745325986491,2.98864,1635.2,1635.1,2.96441]
[1745325987188,2.65962,1635.4,1635.3,1.22299]
[1745325987491,1.22303,1635.3,1635.2,2.96429]
[1745325987694,1.22303,1635.3,1635.1,1.22305]
[1745325987695,1.22312,1635.2,1635.1,1.22305]
[1745325987888,1.22312,1635.2,1635.1,2.96435]
[1745325988085,7.54512,1635.2,1635.1,2.96435]
[1745325988689,9.31062,1635.2,1635.1,2.96435]
[1745325989589,1.22314,1635.1,1635.0,4.13716533]
[1745325989787,6.18364,1635.1,1635.0,5.36037533]
[1745325989995,2.97584,1635.1,1635.0,4.13716533]
[1745325990292,9.29784,1635.1,1635.0,0.00916533]
[1745325990496,12.50564,1635.1,1635.0,0.00916533]
[1745325995196,12.50564,1635.1,1635.0,1.23237533]
[1745325995898,9.29784,1635.1,1635.0,1.23237533]
[1745325996100,12.50564,1635.1,1635.0,1.23237533]
[1745325996304,9.29784,1635.1,1635.0,1.23237533]
[1745325997092,12.50564,1635.1,1635.0,1.23237533]
[1745325997297,12.50564,1635.1,1635.0,0.00916533]
[1745325998000,12.50564,1635.1,1635.0,1.23237533]
[1745325998200,12.50564,1635.1,1635.0,1.65936533]
[1745325998403,12.50564,1635.1,1635.0,0.00916533]
[1745326000601,9.29784,1635.1,1635.0,0.00916533]
[1745326000801,12.50564,1635.1,1635.0,0.00916533]
[1745326001205,10.75294,1635.1,1635.0,1.23237533]
[1745326001508,3.09584096,1635.1,1635.0,12.11547533]
[1745326001700,3.09584096,1635.1,1635.0,15.00247533]
[1745326001901,1.49500096,1635.1,1635.0,18.21027533]
[1745326002100,3.2078,1635.7,1635.6,1.22276]
[1745326002405,4.43049,1635.7,1635.6,1.22276]
[1745326002907,1.22276,1635.6,1635.5,2.8747]
[1745326003208,1.22284,1635.5,1635.4,5.35287]
[1745326003402,1.22284,1635.5,1635.4,1.22287]
[1745326003705,1.22291,1635.4,1635.3,4.09763]
[1745326003905,1.22291,1635.4,1635.3,8.22763]
[1745326004311,6.322,1635.4,1635.3,8.22763]
[1745326004505,8.089,1635.4,1635.3,8.22763]
[1745326004695,9.31191,1635.4,1635.3,8.22763]
[1745326004894,6.322,1635.4,1635.3,8.22763]
[1745326005303,6.322,1635.4,1635.3,10.02273]
[1745326005704,7.54491,1635.4,1635.3,10.02273]
[1745326005912,1.22299,1635.3,1635.2,1.22304]
[1745326006108,9.31199,1635.3,1635.2,3.01814]
[1745326006909,9.31199,1635.3,1635.2,1.7951]
[1745326007108,9.31199,1635.3,1635.2,3.01816]
[1745326007304,9.31199,1635.3,1635.2,1.22306]
[1745326007509,1.22311,1635.2,1635.1,1.22308]
[1745326007710,2.86031,1635.2,1635.1,1.22308]
[1745326008315,1.22314,1635.1,1635.0,0.00916533]
[1745326008615,2.86034,1635.1,1635.0,1.23237533]
[1745326009118,2.86034,1635.1,1635.0,0.00916533]
[1745326009313,9.18234,1635.1,1635.0,1.23237533]
[1745326010216,3.05805,1635.0,1634.7,6.83435]
[1745326010512,1.22336,1634.8,1634.7,8.53735]
[1745326010706,2.99535,1634.9,1634.8,1.22336]
[1745326011103,8.094,1634.9,1634.8,2.85896]
[1745326011318,6.322,1634.9,1634.8,2.85896]
[1745326011606,7.54529,1634.9,1634.8,2.85896]
[1745326013208,9.31729,1634.9,1634.8,2.85896]
[1745326015312,1.22336,1634.8,1634.7,4.14716533]
[1745326015615,2.88066,1634.8,1634.7,1.23260533]
[1745326016114,6.08846,1634.8,1634.7,2.98310533]
[1745326016311,3.2078,1634.8,1634.7,2.98310533]
[1745326016615,9.5298,1634.8,1634.7,2.98310533]
[1745326018318,6.322,1634.8,1634.7,2.98310533]
[1745326019313,7.54536,1634.8,1634.7,2.98310533]
[1745326019921,6.322,1634.8,1634.7,2.98310533]
[1745326020123,1.22331,1634.9,1634.8,1.22336]
[1745326020417,1.22331,1634.9,1634.8,3.03036]
[1745326020722,1.22336,1634.8,1634.7,0.00916533]
[1745326021222,9.24336,1634.8,1634.7,0.00916533]
[1745326021819,9.24336,1634.8,1634.7,1.23260533]
[1745326022024,9.24336,1634.8,1634.7,0.00916533]
[1745326022324,1.22351,1634.6,1634.5,2.61567]
[1745326022513,4.43131,1634.6,1634.5,2.61567]
[1745326023116,10.75331,1634.6,1634.5,1.22357]
[1745326024024,10.75331,1634.6,1634.4,3.03978533]
[1745326024025,1.22359,1634.5,1634.4,3.03978533]
[1745326024222,3.02609,1634.5,1634.4,0.00916533]
[1745326024427,3.02609,1634.5,1634.4,1.23282533]
[1745326024722,3.02609,1634.5,1634.4,2.90782533]
[1745326025114,9.34809,1634.5,1634.4,0.00916533]
[1745326025318,10.89835108,1634.5,1634.4,0.00916533]
[1745326025520,10.79689,1634.5,1634.4,0.00916533]
[1745326026130,10.89834707,1634.5,1634.4,0.00916533]
[1745326026726,10.79689,1634.5,1634.4,0.00916533]
[1745326026924,10.89835241,1634.5,1634.4,0.00916533]
[1745326028428,10.89835177,1634.5,1634.4,0.00916533]
[1745326028927,10.89835177,1634.5,1634.4,1.23282533]
[1745326029325,6.30366934,1634.5,1634.4,13.58062533]
[1745326029722,6.30366934,1634.5,1634.4,16.49292533]
[1745326030229,6.13805,1634.9,1634.8,1.22336]
[1745326031119,12.46005,1634.9,1634.8,1.22336]
[1745326035425,1.22336,1634.8,1634.7,2.87171]
[1745326035633,1.2235,1634.7,1634.6,1.22344]
[1745326035930,1.22359,1634.5,1634.4,8.25507533]
[1745326036130,7.54559,1634.5,1634.4,4.14507533]
[1745326036330,8.0771,1634.5,1634.4,5.90137533]
[1745326036625,6.322,1634.5,1634.4,5.90137533]
[1745326037328,1.22344,1634.7,1634.6,1.22351]
[1745326037719,1.22344,1634.7,1634.6,2.97981]
[1745326037920,1.22344,1634.7,1634.5,1.22357]
[1745326037921,1.22359,1634.6,1634.5,1.22357]
[1745326038116,1.22359,1634.5,1634.4,5.84365533]
[1745326038634,1.22359,1634.5,1634.4,4.62006533]
[1745326038821,2.98919,1634.5,1634.4,4.62006533]
[1745326039026,2.98919,1634.5,1634.4,5.84367533]
[1745326039227,9.31119,1634.5,1634.4,5.84367533]
[1745326039720,9.31119,1634.5,1634.4,2.69547533]
[1745326041339,9.31119,1634.5,1634.4,4.35227533]
[1745326041529,9.31119,1634.5,1634.4,0.00916533]
[1745326041729,12.51899,1634.5,1634.4,1.23282533]
[1745326041930,15.42309,1634.5,1634.4,1.23282533]
[1745326042429,15.42309,1634.5,1634.4,0.00916533]
[1745326042832,15.42309,1634.5,1634.4,1.23282533]
[1745326043621,9.5298,1634.5,1634.4,1.23282533]
[1745326043828,6.322,1634.5,1634.4,2.88962533]
[1745326044330,1.22359,1634.6,1634.5,1.22353]
[1745326044532,1.22359,1634.6,1634.5,2.88633]
[1745326044727,2.92259,1634.6,1634.5,2.88633]
[1745326045128,9.24459,1634.6,1634.5,2.88633]
[1745326046525,9.24459,1634.6,1634.5,1.22353]
[1745326046931,9.24459,1634.6,1634.5,2.88633]
[1745326048136,9.24459,1634.6,1634.5,4.38093]
[1745326050231,12.45239,1634.6,1634.5,3.1574]
[1745326050733,12.45239,1634.6,1634.5,4.38099]
[1745326050941,1.22359,1634.5,1634.4,1.23276533]
[1745326051134,3.01659,1634.5,1634.4,1.23276533]
[1745326051935,4.39179,1634.5,1634.4,1.23276533]
[1745326052241,10.71379,1634.5,1634.4,0.00916533]
[1745326052441,12.31855085,1634.5,1634.4,0.00916533]
[1745326054144,16.09496085,1634.5,1634.2,1.4258]
[1745326054340,1.22396,1634.0,1633.9,8.2029]
[1745326054541,1.22396,1634.0,1633.9,9.8674]
[1745326054944,1.22384,1634.2,1633.9,8.6434]
[1745326055142,3.2078,1634.4,1634.0,1.6645]
[1745326055346,3.2078,1634.4,1634.3,1.22374]
[1745326055645,1.22352,1634.6,1634.5,1.22359]
[1745326055846,4.43132,1634.6,1634.5,1.22359]
[1745326056144,1.22359,1634.5,1634.4,5.757]
[1745326056354,2.92119,1634.5,1634.4,4.5334]
[1745326056535,2.92119,1634.5,1634.4,1.22366]
[1745326056941,1.22372,1634.4,1634.3,1.22368]
[1745326057143,2.92132,1634.4,1634.3,1.22368]
[1745326057439,2.92132,1634.4,1634.3,3.02878]
[1745326057647,6.12912,1634.4,1634.3,3.02878]
[1745326057840,2.92132,1634.4,1634.3,3.02878]
[1745326058242,9.24332,1634.4,1634.3,3.02878]
[1745326058745,8.0196,1634.4,1634.3,3.02878]
[1745326058946,6.322,1634.4,1634.3,3.02878]
[1745326059152,6.322,1634.4,1634.3,4.47468]
[1745326059650,7.54566,1634.4,1634.3,4.47468]
[1745326060052,1.22374,1634.3,1634.2,6.79845]
[1745326060242,1.7033,1634.3,1634.2,6.79845]
[1745326060443,6.322,1634.4,1634.3,1.22374]
[1745326060649,7.54566,1634.4,1634.3,4.53044]
[1745326060950,9.24896,1634.4,1634.3,4.53044]
[1745326062047,1.22374,1634.3,1634.2,6.79844]
[1745326062247,2.92234,1634.3,1634.2,6.79844]
[1745326062443,6.13014,1634.3,1634.2,6.79844]
[1745326062843,1.22389,1634.1,1634.0,2.75461]
[1745326063050,1.22389,1634.1,1634.0,4.48261]
[1745326063349,7.54589,1634.1,1634.0,4.48261]
[1745326063750,12.45229,1634.1,1634.0,4.48261]
[1745326064972,1.22422,1633.7,1633.6,1.22418]
[1745326065469,1.22422,1633.7,1633.6,2.99878]
[1745326065673,2.93592,1633.7,1633.6,2.99878]
[1745326066270,2.93592,1633.7,1633.5,2.65748649]
[1745326066271,1.22426,1633.6,1633.5,2.65748649]
[1745326066569,6.14376,1633.6,1633.5,2.65748649]
[1745326067067,3.2078,1633.6,1633.5,2.65748649]
[1745326067262,9.5298,1633.6,1633.5,4.43208649]
[1745326068170,3.2078,1633.6,1633.5,4.43208649]
[1745326069272,4.43206,1633.6,1633.5,4.43208649]
[1745326069466,3.2078,1633.6,1633.5,4.43208649]
[1745326076377,4.43206,1633.6,1633.5,4.43208649]
[1745326076672,3.2078,1633.6,1633.5,4.43208649]
[1745326076876,4.43206,1633.6,1633.5,4.43208649]
[1745326077781,4.43206,1633.6,1633.5,0.00617649]
[1745326078265,17.55486,1633.6,1633.5,0.00617649]
[1745326078464,1.22456,1633.2,1633.1,1.22462]
[1745326078668,4.43236,1633.2,1633.1,1.22462]
[1745326078876,1.22456,1633.2,1633.1,1.22462]
[1745326079178,7.54656,1633.2,1633.1,2.89252]
[1745326079570,6.322,1633.2,1633.1,2.89252]
[1745326079971,7.54656,1633.2,1633.1,2.89252]
[1745326080282,7.54656,1633.2,1633.0,1.5328]
[1745326080574,7.54656,1633.2,1632.8,3.06216]
[1745326080575,1.22464,1633.1,1632.8,3.06216]
[1745326080778,9.5298,1633.2,1633.1,1.22464]
[1745326080979,10.7544,1633.2,1633.1,1.22464]
[1745326081179,6.322,1633.2,1633.1,1.22464]
[1745326081675,6.322,1633.2,1633.1,5.33464]
[1745326081878,6.322,1633.2,1633.1,6.82194]
[1745326082078,6.29749285,1633.2,1633.1,11.82194]
[1745326082279,1.22434,1633.5,1633.4,1.22434]
[1745326082880,2.7845,1633.6,1633.5,1.22434]
[1745326083074,2.88601931,1633.6,1633.5,1.22434]
[1745326083485,1.22434,1633.5,1633.4,2.71165]
[1745326083984,1.22441,1633.4,1633.3,2.96494]
[1745326084380,7.54639,1633.5,1633.4,1.22441]
[1745326084578,10.75419,1633.5,1633.4,1.22441]
[1745326085974,10.75416,1633.5,1633.4,1.22441]
[1745326087686,1.22441,1633.4,1633.3,1.7405]
[1745326087886,10.75419,1633.5,1633.4,1.22441]
[1745326088584,6.322,1633.5,1633.4,1.22441]
[1745326089186,1.22428,1633.6,1633.5,1.22434]
[1745326089778,1.22434,1633.5,1633.4,2.85595]
[1745326090187,7.54634,1633.5,1633.4,2.85595]
[1745326090386,10.75414,1633.5,1633.4,1.22435]
[1745326090588,1.22447,1633.4,1633.3,1.22443]
[1745326090887,10.7542,1633.5,1633.4,1.22441]
[1745326091187,4.53373131,1633.5,1633.4,1.22441]
[1745326091387,4.53373107,1633.5,1633.4,1.22441]
[1745326091587,1.22441,1633.4,1633.3,2.85602]
[1745326091887,1.22449,1633.3,1633.2,1.2245]
[1745326092279,7.54649,1633.3,1633.2,1.2245]
[1745326092980,6.322,1633.3,1633.2,1.2245]
[1745326093188,7.54649,1633.3,1633.2,1.2245]
[1745326093379,7.9791,1633.3,1633.2,1.2245]
[1745326093787,9.20359,1633.3,1633.2,1.2245]
[1745326094184,2.88159,1633.3,1633.2,1.2245]
[1745326094785,6.08939,1633.3,1633.2,1.2245]
[1745326094988,1.22462,1633.2,1633.1,1.22457]
[1745326095288,1.6571,1633.2,1633.1,1.22457]
[1745326095488,1.6571,1633.2,1633.1,3.02147]
[1745326095689,2.88166,1633.2,1633.1,3.02147]
[1745326095897,1.6571,1633.2,1633.1,3.02147]
[1745326096190,2.88166,1633.2,1633.1,3.02147]
[1745326098293,3.0606,1633.4,1633.3,1.22449]
[1745326098496,0.029,1633.4,1633.3,1.22449]
[1745326098792,4.111,1633.6,1633.5,1.22434]
[1745326098793,4.30092,1633.6,1633.5,1.22434]
[1745326098979,6.14893918,1633.6,1633.5,1.22434]
[1745326099181,1.22441,1633.5,1633.4,1.22436]
[1745326099383,2.97091,1633.5,1633.4,1.22436]
[1745326099785,1.22449,1633.4,1633.3,1.22445]
[1745326099985,2.97099,1633.4,1633.3,1.22445]
[1745326100192,9.29299,1633.4,1633.3,1.22445]